bitfinex/quotes_BTCUSD_20241014
["timestamp","ask_amount","ask_price","bid_price","bid_amount"]
[1728885403327,2.91967833,64008.0,64007.0,1.10231725]
[1728885403546,2.91967833,64008.0,64007.0,1.10883821]
[1728885404021,2.91967833,64008.0,64007.0,1.12283821]
[1728885404241,2.91967833,64008.0,64007.0,1.10883821]
[1728885404463,2.91967833,64008.0,64007.0,1.79483821]
[1728885404676,2.91967833,64008.0,64007.0,1.68240075]
[1728885405976,2.89151465,64008.0,64007.0,1.68240075]
[1728885406631,2.89151465,64008.0,64007.0,1.52616875]
[1728885407099,2.89151465,64008.0,64007.0,0.82616875]
[1728885408855,2.89151465,64008.0,64007.0,0.98240075]
[1728885409969,2.89151465,64008.0,64007.0,0.82616875]
[1728885410187,2.89151465,64008.0,64007.0,1.52616875]
[1728885410447,2.89151465,64008.0,64007.0,1.52698975]
[1728885410885,2.89151465,64008.0,64007.0,1.66741023]
[1728885411108,2.89151465,64008.0,64007.0,1.64869257]
[1728885411574,2.89151465,64008.0,64007.0,1.64869312]
[1728885412437,2.89151465,64008.0,64007.0,1.648685]
[1728885413302,2.89151465,64008.0,64007.0,0.948685]
[1728885414832,2.89151465,64008.0,64007.0,1.104917]
[1728885415041,2.89151465,64008.0,64007.0,0.948685]
[1728885416161,2.89151465,64008.0,64007.0,0.80827264]
[1728885416371,2.84261885,64008.0,64007.0,1.50827264]
[1728885416803,2.84261885,64008.0,64007.0,1.50174176]
[1728885417213,2.84230392,64008.0,64007.0,1.50174176]
[1728885420622,2.84230392,64008.0,64007.0,1.65797376]
[1728885421056,2.81413986,64008.0,64007.0,1.65797376]
[1728885421504,2.81413986,64008.0,64007.0,1.49003875]
[1728885421950,2.81413986,64008.0,64007.0,1.64627075]
[1728885422386,2.81413986,64008.0,64007.0,1.49003875]
[1728885422604,2.81413986,64008.0,64007.0,1.64627075]
[1728885423260,2.81413986,64008.0,64007.0,1.49003875]
[1728885425408,2.81413986,64008.0,64007.0,1.63049655]
[1728885426331,2.81413986,64008.0,64007.0,1.49003875]
[1728885429595,2.81413986,64008.0,64007.0,1.64627075]
[1728885430073,2.81413986,64008.0,64007.0,1.6527333]
[1728885431254,2.76524532,64008.0,64007.0,1.6527333]
[1728885432612,2.76524532,64008.0,64007.0,1.65263636]
[1728885432818,2.76524532,64008.0,64007.0,0.95263636]
[1728885435844,2.76524532,64008.0,64007.0,1.65263636]
[1728885437019,2.73004097,64008.0,64007.0,1.66282225]
[1728885438092,2.73004097,64008.0,64007.0,1.65263636]
[1728885440098,2.73004097,64008.0,64007.0,1.65263617]
[1728885441229,2.73004097,64008.0,64007.0,1.65213836]
[1728885441485,2.73004097,64008.0,64007.0,1.65180336]
[1728885442871,2.73004097,64008.0,64007.0,0.95180336]
[1728885444268,2.73004097,64008.0,64007.0,0.95180328]
[1728885445286,2.73004097,64008.0,64007.0,0.69938558]
[1728885445539,3.16697097,64008.0,64007.0,0.74798364]
[1728885445804,3.16897097,64008.0,64007.0,0.55411776]
[1728885446266,3.16897097,64008.0,64007.0,0.56976214]
[1728885446540,3.16897097,64008.0,64007.0,0.48988634]
[1728885446774,3.16897097,64008.0,64007.0,0.5367805]
[1728885447010,3.16897097,64008.0,64007.0,0.54622953]
[1728885447011,3.16935871,64008.0,64007.0,0.54622953]
[1728885447245,3.16935871,64008.0,64007.0,0.48385453]
[1728885447475,3.16935871,64008.0,64007.0,0.53678126]
[1728885447935,3.16935871,64008.0,64007.0,0.48988634]
[1728885447936,3.16935871,64008.0,64007.0,0.48588634]
[1728885448164,3.16935871,64008.0,64007.0,0.50086115]
[1728885448420,3.16935871,64008.0,64007.0,0.49386115]
[1728885448865,3.16935871,64008.0,64007.0,0.49188634]
[1728885449104,3.16935871,64008.0,64007.0,0.48588634]
[1728885449326,3.16935871,64008.0,64007.0,0.48288634]
[1728885449770,3.16935871,64008.0,64007.0,0.48788634]
[1728885450208,3.16935871,64008.0,64007.0,0.48288634]
[1728885450440,3.16935871,64008.0,64007.0,0.48888634]
[1728885450668,3.16935871,64008.0,64007.0,0.48188634]
[1728885451137,3.16935871,64008.0,64007.0,0.48788634]
[1728885451360,3.16935871,64008.0,64007.0,0.48188634]
[1728885451598,3.16935871,64008.0,64007.0,0.48888634]
[1728885452020,3.16935871,64008.0,64007.0,0.48188634]
[1728885452257,3.16935871,64008.0,64007.0,0.48688634]
[1728885452508,3.16935871,64008.0,64007.0,0.47588634]
[1728885452741,3.16935871,64008.0,64007.0,0.47988634]
[1728885452978,3.16897097,64008.0,64007.0,0.47988634]
[1728885453211,3.16897097,64008.0,64007.0,0.47588634]
[1728885453686,3.16897097,64008.0,64007.0,0.48088634]
[1728885453926,3.16897097,64008.0,64007.0,0.48288634]
[1728885454447,3.16935871,64008.0,64007.0,0.48888634]
[1728885455583,3.16935871,64008.0,64007.0,0.48882258]
[1728885455803,3.16935871,64008.0,64007.0,0.482521]
[1728885456036,3.16935871,64008.0,64007.0,0.48882259]
[1728885458941,3.16935871,64008.0,64007.0,0.48882179]
[1728885461564,3.19235871,64008.0,64007.0,0.48882179]
[1728885461822,3.29235871,64008.0,64007.0,0.48882179]
[1728885462726,3.29235871,64008.0,64007.0,0.48881994]
[1728885464124,4.69558272,64008.0,64007.0,0.48881994]
[1728885464345,4.69558272,64008.0,64007.0,0.482521]
[1728885466145,4.70614741,64008.0,64007.0,0.48881994]
[1728885467075,4.70614741,64008.0,64007.0,0.48881675]
[1728885470437,4.70614741,64008.0,64007.0,0.482521]
[1728885470661,4.70614741,64008.0,64007.0,0.48881883]
[1728885478817,4.70614741,64008.0,64007.0,0.48882938]
[1728885481706,4.70614741,64008.0,64007.0,0.50053715]
[1728885485088,4.70614741,64008.0,64007.0,0.48882938]
[1728885485318,4.70614741,64008.0,64007.0,0.50053972]
[1728885485554,4.80233311,64008.0,64007.0,0.50053972]
[1728885486520,4.5449234,64008.0,64007.0,0.50053972]
[1728885486750,4.5219234,64008.0,64007.0,0.50053972]
[1728885487245,3.2799234,64008.0,64007.0,0.50053972]
[1728885489146,3.2799234,64008.0,64007.0,0.50054608]
[1728885489594,3.2799234,64008.0,64007.0,0.48883574]
[1728885489811,3.2799234,64008.0,64007.0,0.50055785]
[1728885493152,3.2799234,64008.0,64007.0,0.48884279]
[1728885493153,4.5219234,64008.0,64007.0,0.48884279]
[1728885493360,4.5219234,64008.0,64007.0,0.50057449]
[1728885495105,4.5219234,64008.0,64007.0,0.48057449]
[1728885496645,4.5449234,64008.0,64007.0,0.48057449]
[1728885497735,4.5219234,64008.0,64007.0,0.48057449]
[1728885499068,3.2799234,64008.0,64007.0,0.48057449]
[1728885501075,3.2799234,64008.0,64007.0,0.4805732]
[1728885501298,2.98665871,64008.0,64007.0,0.4805732]
[1728885501516,2.88627097,64008.0,64007.0,0.49068837]
[1728885501743,2.88827097,64008.0,64007.0,0.462521]
[1728885501960,2.88627097,64008.0,64007.0,0.50936733]
[1728885502420,2.88627097,64008.0,64007.0,0.51739588]
[1728885502675,2.88627097,64008.0,64007.0,0.47053699]
[1728885502889,2.88627097,64008.0,64007.0,0.49870304]
[1728885503103,2.88627097,64008.0,64007.0,0.49270304]
[1728885503342,2.88627097,64008.0,64007.0,0.53956119]
[1728885503557,2.88627097,64008.0,64007.0,0.49870304]
[1728885503770,2.88627097,64008.0,64007.0,0.49170304]
[1728885503989,2.88627097,64008.0,64007.0,0.50570304]
[1728885504408,2.88627097,64008.0,64007.0,0.49170304]
[1728885504622,2.88627097,64008.0,64007.0,0.56999267]
[1728885504839,2.88627097,64008.0,64007.0,0.49970304]
[1728885505073,4.12827097,64008.0,64007.0,0.60641683]
[1728885505309,4.12827097,64008.0,64007.0,0.58297875]
[1728885505310,4.0950598,64008.0,64007.0,0.58297875]
[1728885505536,4.0950598,64008.0,64007.0,0.54654226]
[1728885505996,4.0950598,64008.0,64007.0,0.55854226]
[1728885506452,4.0950598,64008.0,64007.0,0.54654226]
[1728885506725,4.09544754,64008.0,64007.0,0.54654226]
[1728885506940,4.09544754,64008.0,64007.0,0.53254226]
[1728885507159,4.09544754,64008.0,64007.0,0.50755807]
[1728885507378,4.09544754,64008.0,64007.0,0.49355807]
[1728885507613,4.37594754,64008.0,64007.0,0.49355807]
[1728885507833,4.37594754,64008.0,64007.0,0.52055807]
[1728885508057,4.19544754,64008.0,64007.0,0.52055807]
[1728885508336,4.19544754,64008.0,64007.0,0.50755807]
[1728885508735,4.19544754,64008.0,64007.0,0.52055807]
[1728885510919,2.95344754,64008.0,64007.0,0.52055807]
[1728885512949,2.95344754,64008.0,64007.0,0.50412036]
[1728885513182,2.95344754,64008.0,64007.0,0.52044433]
[1728885514953,2.95344754,64008.0,64007.0,0.50744433]
[1728885515391,2.95344754,64008.0,64007.0,0.52044433]
[1728885515608,2.95344754,64008.0,64007.0,0.50644433]
[1728885517191,2.95344754,64008.0,64007.0,0.52044433]
[1728885518365,2.95344754,64008.0,64007.0,0.52855994]
[1728885518594,2.95344754,64008.0,64007.0,0.52044433]
[1728885520063,2.95344754,64008.0,64007.0,0.50744433]
[1728885520308,2.95344754,64008.0,64007.0,0.49344433]
[1728885520552,2.95344754,64008.0,64007.0,0.52044433]
[1728885521034,2.95344754,64008.0,64007.0,0.52044956]
[1728885521262,2.95344754,64008.0,64007.0,0.52857062]
[1728885522453,2.95344754,64008.0,64007.0,0.52044956]
[1728885523394,2.95344754,64008.0,64007.0,0.49344956]
[1728885523631,2.95344754,64008.0,64007.0,0.52044956]
[1728885524147,2.95344754,64008.0,64007.0,0.50744956]
[1728885524397,2.95344754,64008.0,64007.0,0.49344956]
[1728885524628,2.95344754,64008.0,64007.0,0.50644956]
[1728885524883,2.95344754,64008.0,64007.0,0.52045436]
[1728885525176,2.95344754,64008.0,64007.0,0.50745436]
[1728885525380,2.95344754,64008.0,64007.0,0.49345751]
[1728885526357,2.95344754,64008.0,64007.0,0.50645751]
[1728885526825,3.02904754,64008.0,64007.0,0.52045751]
[1728885527754,3.12523324,64008.0,64007.0,0.52045751]
[1728885528182,3.12523324,64008.0,64007.0,0.53608696]
[1728885528853,3.12523324,64008.0,64007.0,0.53609481]
[1728885529796,2.9510598,64008.0,64007.0,0.61649481]
[1728885530018,2.65961877,64008.0,64007.0,1.17498912]
[1728885530237,2.65961877,64008.0,64007.0,1.23012161]
[1728885530452,2.65961877,64008.0,64007.0,1.11296683]
[1728885530878,2.65961877,64008.0,64007.0,0.98978113]
[1728885531093,2.81584877,64008.0,64007.0,0.64395712]
[1728885531312,2.81584877,64008.0,64007.0,0.75166596]
[1728885531532,2.81584877,64008.0,64007.0,0.60842918]
[1728885531965,2.81584877,64008.0,64007.0,0.62242918]
[1728885532408,2.81584877,64008.0,64007.0,0.5287246]
[1728885532625,2.81584877,64008.0,64007.0,0.50066612]
[1728885532844,2.81584877,64008.0,64007.0,0.51562225]
[1728885533054,2.81584877,64008.0,64007.0,0.50162225]
[1728885533265,2.81584877,64008.0,64007.0,0.51562225]
[1728885533486,2.81584877,64008.0,64007.0,0.52962225]
[1728885533693,2.81584877,64008.0,64007.0,0.51562225]
[1728885533909,2.81584877,64008.0,64007.0,0.52962225]
[1728885534143,2.81584877,64008.0,64007.0,0.51562225]
[1728885534811,2.81584877,64008.0,64007.0,0.52962225]
[1728885535651,2.81584877,64008.0,64007.0,0.62332683]
[1728885535865,2.81584877,64008.0,64007.0,0.67213514]
[1728885536083,2.81584877,64008.0,64007.0,0.52962225]
[1728885536853,2.81584877,64008.0,64007.0,0.57842444]
[1728885537082,2.81584877,64008.0,64007.0,0.52961777]
[1728885538908,2.65961877,64008.0,64007.0,0.69084178]
[1728885539795,2.65961877,64008.0,64007.0,0.67684178]
[1728885540011,2.65961877,64008.0,64007.0,0.84274472]
[1728885540438,2.65961877,64008.0,64007.0,0.82478232]
[1728885540657,2.65961877,64008.0,64007.0,0.83100841]
[1728885541097,2.65961877,64008.0,64007.0,0.84500841]
[1728885541350,2.65961877,64008.0,64007.0,0.84500839]
[1728885541812,2.65961877,64008.0,64007.0,0.72791919]
[1728885543102,2.65961877,64008.0,64007.0,0.72167614]
[1728885543311,2.65961877,64008.0,64007.0,0.72791853]
[1728885543516,2.65961877,64008.0,64007.0,0.84500773]
[1728885544387,2.81584877,64008.0,64007.0,0.84500773]
[1728885544844,2.81584877,64008.0,64007.0,0.72791853]
[1728885545067,2.78063918,64008.0,64007.0,0.67912135]
[1728885545723,2.78063918,64008.0,64007.0,0.66512135]
[1728885546164,2.78063918,64008.0,64007.0,0.67912135]
[1728885546397,2.78263918,64008.0,64007.0,0.67912135]
[1728885546613,2.78063918,64008.0,64007.0,0.67912135]
[1728885546828,2.78263918,64008.0,64007.0,0.66512135]
[1728885547063,2.78263918,64008.0,64007.0,0.67912135]
[1728885549547,2.78063918,64008.0,64007.0,0.67912135]
[1728885550025,2.78063918,64008.0,64007.0,0.67086104]
[1728885550263,2.78063918,64008.0,64007.0,0.50963703]
[1728885550717,2.78063918,64008.0,64007.0,0.49340581]
[1728885550972,2.78263918,64008.0,64007.0,0.50963878]
[1728885551822,2.78063918,64008.0,64007.0,0.50963878]
[1728885552036,2.78263918,64008.0,64007.0,0.50963878]
[1728885553854,2.78263918,64008.0,64007.0,0.57989491]
[1728885554064,2.78263918,64008.0,64007.0,0.50963878]
[1728885554291,2.78263918,64008.0,64007.0,0.57989499]
[1728885554507,2.78263918,64008.0,64007.0,0.50963878]
[1728885554727,2.78263918,64008.0,64007.0,0.51788596]
[1728885554948,2.78263918,64008.0,64007.0,0.50963878]
[1728885555198,2.78263918,64008.0,64007.0,0.5584404]
[1728885555443,2.78263918,64008.0,64007.0,0.56668758]
[1728885555916,2.78063918,64008.0,64007.0,0.56668758]
[1728885556146,2.78063918,64008.0,64007.0,0.55268758]
[1728885556376,2.78063918,64008.0,64007.0,0.56668758]
[1728885556869,2.78063918,64008.0,64007.0,0.55268758]
[1728885557391,2.78063918,64008.0,64007.0,0.56668758]
[1728885558076,2.78063918,64008.0,64007.0,0.55268758]
[1728885558538,2.78063918,64008.0,64007.0,0.68377678]
[1728885559278,2.78063918,64008.0,64007.0,0.68370408]
[1728885560172,2.74542931,64008.0,64007.0,0.51781326]
[1728885560400,2.74542931,64008.0,64007.0,0.56663954]
[1728885560884,2.74742931,64008.0,64007.0,0.56663954]
[1728885561102,2.74542931,64008.0,64007.0,0.56663954]
[1728885562457,2.74542931,64008.0,64007.0,0.66033283]
[1728885562921,2.74542931,64008.0,64007.0,0.66034661]
[1728885563160,2.74542931,64008.0,64007.0,0.66035799]
[1728885563837,2.74742931,64008.0,64007.0,0.66035799]
[1728885565200,2.74542931,64008.0,64007.0,0.66035799]
[1728885566249,2.74542931,64008.0,64007.0,0.65040434]
[1728885566489,2.74542931,64008.0,64007.0,0.6504239]
[1728885566917,2.74742931,64008.0,64007.0,0.6504239]
[1728885567131,2.74542931,64008.0,64007.0,0.6504239]
[1728885567575,2.74542931,64008.0,64007.0,0.55669967]
[1728885567996,2.74742931,64008.0,64007.0,0.54845249]
[1728885568207,2.74742931,64008.0,64007.0,0.6421827]
[1728885568423,2.74742931,64008.0,64007.0,0.54845249]
[1728885569707,2.93912931,64008.0,64007.0,0.54845249]
[1728885571085,2.93912931,64008.0,64007.0,0.54845247]
[1728885571996,2.93912931,64008.0,64007.0,0.54223209]
[1728885572228,2.93912931,64008.0,64007.0,0.54841739]
[1728885573348,2.91096141,64008.0,64007.0,0.66563948]
[1728885574513,2.91096141,64008.0,64007.0,0.54841739]
[1728885576386,2.91096141,64008.0,64007.0,0.55831507]
[1728885579175,2.91096141,64008.0,64007.0,0.55831542]
[1728885583139,2.91096141,64008.0,64007.0,0.55831555]
[1728885583355,2.87575154,64008.0,64007.0,0.55831555]
[1728885583568,2.87575154,64008.0,64007.0,0.55831543]
[1728885584418,2.87575154,64008.0,64007.0,0.5484176]
[1728885587018,2.87575154,64008.0,64007.0,0.49959132]
[1728885588600,2.87575154,64008.0,64007.0,0.59345204]
[1728885591087,2.87575154,64008.0,64007.0,0.58726653]
[1728885591332,2.87575154,64008.0,64007.0,0.59344846]
[1728885591792,2.87575154,64008.0,64007.0,0.59343125]
[1728885593130,2.87575154,64008.0,64007.0,0.49958774]
[1728885593342,2.87575154,64008.0,64007.0,0.54845886]
[1728885598339,2.87575154,64008.0,64007.0,0.55829416]
[1728885600942,2.87575154,64008.0,64007.0,0.57002291]
[1728885601606,2.84054074,64008.0,64007.0,0.57002291]
[1728885601827,2.64684074,64008.0,64007.0,0.57002291]
[1728885602366,2.64684074,64008.0,64007.0,0.52115179]
[1728885602566,2.64684074,64008.0,64007.0,0.57002274]
[1728885602784,2.64884074,64008.0,64007.0,0.57002274]
[1728885602995,2.64684074,64008.0,64007.0,0.57002274]
[1728885605602,2.64684074,64008.0,64007.0,0.56018744]
[1728885606033,2.64684074,64008.0,64007.0,0.67747951]
[1728885607096,2.64684074,64008.0,64007.0,0.56018744]
[1728885607970,2.64684074,64008.0,64007.0,1.26018744]
[1728885608201,2.49061074,64008.0,64007.0,1.42141145]
[1728885608431,2.49061074,64008.0,64007.0,1.43124564]
[1728885611554,2.46244452,64008.0,64007.0,1.43124564]
[1728885615681,2.46244452,64008.0,64007.0,1.52718245]
[1728885615892,2.61867452,64008.0,64007.0,1.52718245]
[1728885616151,2.46244452,64008.0,64007.0,1.52718245]
[1728885616357,2.61867452,64008.0,64007.0,1.52718245]
[1728885616613,2.61867452,64008.0,64007.0,1.26977274]
[1728885617062,2.61867452,64008.0,64007.0,1.38698756]
[1728885617296,2.62067452,64008.0,64007.0,1.38698756]
[1728885617538,2.62067452,64008.0,64007.0,1.38684105]
[1728885617778,2.81837452,64008.0,64007.0,1.28038973]
[1728885617989,2.89877452,64008.0,64007.0,1.32529412]
[1728885618227,2.89877452,64008.0,64007.0,1.23151878]
[1728885618687,2.89916226,64008.0,64007.0,1.23151878]
[1728885618917,2.89916226,64008.0,64007.0,1.30185499]
[1728885619133,2.89916226,64008.0,64007.0,0.60185499]
[1728885619604,2.89916226,64008.0,64007.0,0.51751878]
[1728885619834,2.89916226,64008.0,64007.0,0.56340852]
[1728885620072,2.89916226,64008.0,64007.0,0.51651878]
[1728885620338,3.02216226,64008.0,64007.0,0.50351878]
[1728885620571,3.02216226,64008.0,64007.0,0.50675528]
[1728885621062,3.02216226,64008.0,64007.0,0.49275528]
[1728885621349,3.02216226,64008.0,64007.0,0.50375528]
[1728885621581,3.02216226,64008.0,64007.0,0.49275528]
[1728885621844,2.99916226,64008.0,64007.0,0.50275528]
[1728885622325,2.99916226,64008.0,64007.0,0.50353305]
[1728885622556,2.99916226,64008.0,64007.0,0.49375528]
[1728885623047,2.99916226,64008.0,64007.0,0.49475528]
[1728885623297,2.99916226,64008.0,64007.0,0.49275528]
[1728885623545,2.99916226,64008.0,64007.0,0.51175528]
[1728885623804,2.99916226,64008.0,64007.0,0.50175528]
[1728885624246,2.99916226,64008.0,64007.0,0.51175528]
[1728885624465,2.99916226,64008.0,64007.0,0.50175528]
[1728885624701,2.99916226,64008.0,64007.0,0.51175528]
[1728885624909,2.99916226,64008.0,64007.0,0.50275528]
[1728885625126,2.99916226,64008.0,64007.0,0.51175528]
[1728885625752,2.99916226,64008.0,64007.0,0.50250639]
[1728885625981,2.99916226,64008.0,64007.0,0.51150639]
[1728885627117,2.99916226,64008.0,64007.0,0.50150639]
[1728885627320,2.99916226,64008.0,64007.0,0.51050639]
[1728885627562,2.89916226,64008.0,64007.0,0.51050639]
[1728885627819,2.89916226,64008.0,64007.0,0.50150639]
[1728885628279,2.89916226,64008.0,64007.0,0.50950639]
[1728885628708,2.89916226,64008.0,64007.0,0.50150639]
[1728885628927,2.89916226,64008.0,64007.0,0.51050639]
[1728885629135,2.89916226,64008.0,64007.0,0.50150639]
[1728885629344,2.89916226,64008.0,64007.0,0.51250639]
[1728885629551,2.89916226,64008.0,64007.0,0.51249599]
[1728885632302,2.89916226,64008.0,64007.0,0.51249531]
[1728885632553,2.89916226,64008.0,64007.0,0.50349531]
[1728885632783,2.89916226,64008.0,64007.0,0.49249531]
[1728885633013,2.89916226,64008.0,64007.0,0.51446243]
[1728885633462,2.89916226,64008.0,64007.0,0.49075482]
[1728885633682,2.89916226,64008.0,64007.0,0.50175482]
[1728885633920,2.89916226,64008.0,64007.0,0.49075482]
[1728885634203,3.01834796,64008.0,64007.0,0.48075482]
[1728885634415,3.01834796,64008.0,64007.0,0.49275482]
[1728885634628,3.01834796,64008.0,64007.0,0.50175482]
[1728885634841,2.92216226,64008.0,64007.0,0.50175482]
[1728885635057,2.92216226,64008.0,64007.0,0.49275482]
[1728885635507,4.16416226,64008.0,64007.0,0.50275482]
[1728885635721,4.16416226,64008.0,64007.0,0.50225701]
[1728885638363,4.26034796,64008.0,64007.0,0.50225701]
[1728885638596,4.36034796,64008.0,64007.0,0.50225701]
[1728885638807,4.52657197,64008.0,64007.0,0.50225701]
[1728885639468,4.52657197,64008.0,64007.0,0.49025701]
[1728885640373,4.52657197,64008.0,64007.0,0.48125701]
[1728885640601,4.52657197,64008.0,64007.0,0.48025701]
[1728885640813,4.52657197,64008.0,64007.0,0.47050077]
[1728885641254,4.52657197,64008.0,64007.0,0.46441022]
[1728885641437,4.52657197,64008.0,64007.0,0.47050054]
[1728885641667,4.53057197,64008.0,64007.0,0.45461573]
[1728885642309,4.52657197,64008.0,64007.0,0.45461573]
[1728885642761,4.52657197,64008.0,64007.0,0.45561573]
[1728885642762,4.53657197,64008.0,64007.0,0.45561573]
[1728885644309,4.53857197,64008.0,64007.0,0.45561387]
[1728885647359,4.53757197,64008.0,64007.0,0.45561387]
[1728885647603,4.53657197,64008.0,64007.0,0.45561387]
[1728885651839,4.53657197,64008.0,64007.0,0.45561529]
[1728885653182,4.63275767,64008.0,64007.0,0.45561529]
[1728885653641,4.63475767,64008.0,64007.0,0.07625529]
[1728885653864,4.63475767,64008.0,64007.0,0.07016541]
[1728885654525,4.63475767,64008.0,64007.0,0.00767141]
[1728885654741,4.63475767,64008.0,64007.0,4.1e-07]
[1728885655921,0.39975914,64000.0,63999.0,1.7e-07]
[1728885656166,0.39975914,64000.0,63993.0,0.23387254]
[1728885656167,0.38218774,63998.0,63993.0,0.23387254]
[1728885656406,0.00238774,63991.0,63979.0,0.00974445]
[1728885656591,0.00238774,63991.0,63990.0,0.00691037]
[1728885656592,1.98021458,63991.0,63990.0,0.00691037]
[1728885656841,1.97886845,63991.0,63990.0,0.00691037]
[1728885657305,1.97886845,63991.0,63990.0,0.02240778]
[1728885658373,1.98286845,63991.0,63990.0,0.02240778]
[1728885659472,1.98286845,63991.0,63990.0,0.02240538]
[1728885660148,1.98586845,63991.0,63990.0,0.02240538]
[1728885660401,1.99233237,63991.0,63990.0,0.02240538]
[1728885660579,1.69934667,63991.0,63990.0,0.02240538]
[1728885660825,1.69734667,63991.0,63990.0,0.02240538]
[1728885661052,1.69934667,63991.0,63990.0,0.02240538]
[1728885661273,1.69534667,63991.0,63990.0,0.02240538]
[1728885661487,1.69734667,63991.0,63990.0,0.02240538]
[1728885661917,1.69934667,63991.0,63990.0,0.02240538]
[1728885662123,1.69534667,63991.0,63990.0,0.02240673]
[1728885662551,1.69534667,63991.0,63990.0,0.02740748]
[1728885662769,1.69534667,63991.0,63990.0,0.03140748]
[1728885663206,1.69534667,63991.0,63990.0,0.02640748]
[1728885663629,1.69534667,63991.0,63990.0,0.04215102]
[1728885663630,1.69634667,63991.0,63990.0,0.04215102]
[1728885663867,1.69634667,63991.0,63990.0,0.03815102]
[1728885664082,1.69634667,63991.0,63990.0,0.04315102]
[1728885665867,1.696097,63991.0,63990.0,0.03340748]
[1728885666111,1.696097,63991.0,63990.0,0.04315745]
[1728885667392,1.53287299,63991.0,63990.0,0.04315745]
[1728885667603,1.52240907,63991.0,63990.0,0.04315745]
[1728885668485,1.52140907,63991.0,63990.0,0.03215745]
[1728885668911,1.52240907,63991.0,63990.0,0.04515745]
[1728885669549,1.52440907,63991.0,63990.0,0.04515745]
[1728885670302,1.52240907,63991.0,63990.0,0.04515745]
[1728885670513,1.52440907,63991.0,63990.0,0.04515745]
[1728885670951,1.24313807,63991.0,63990.0,0.31565745]
[1728885671170,1.24313807,63991.0,63990.0,0.32697844]
[1728885671605,1.243,63991.0,63990.0,0.32697844]
[1728885671819,0.001,63991.0,63990.0,0.32097844]
[1728885672042,0.312501,64000.0,63991.0,0.0757]
[1728885672043,0.00013807,63998.0,63991.0,0.0757]
[1728885672252,0.00013807,63998.0,63994.0,0.0757]
[1728885672253,0.156262,63995.0,63994.0,0.0757]
[1728885672532,0.23387254,63999.0,63994.0,0.09153904]
[1728885672533,0.156253,63999.0,63994.0,0.09153904]
[1728885672681,0.00013807,64001.0,63994.0,0.09153904]
[1728885672682,0.15638607,64001.0,63995.0,0.27633904]
[1728885672897,0.23387254,64000.0,63996.0,0.11202474]
[1728885673108,1.398246,64002.0,63998.0,0.0795]
[1728885673321,1.398246,64002.0,63999.0,0.01583904]
[1728885673322,1.242,64002.0,63999.0,0.01583904]
[1728885673538,1.398246,64002.0,64000.0,0.01583904]
[1728885673761,1.398246,64002.0,64001.0,0.01583904]
[1728885673989,1.398245,64002.0,64001.0,0.01583904]
[1728885674674,1.242,64002.0,64001.0,0.01583904]
[1728885675320,0.156245,64002.0,64001.0,0.01583904]
[1728885675536,0.156245,64002.0,64001.0,0.03308311]
[1728885675764,0.15599542,64002.0,64001.0,0.04108311]
[1728885675978,0.15599542,64002.0,64001.0,0.02183904]
[1728885676190,0.15763942,64002.0,64001.0,0.02183904]
[1728885676399,0.15763942,64002.0,64001.0,0.03483904]
[1728885676603,0.001644,64002.0,64001.0,0.02183904]
[1728885676837,0.001644,64002.0,64001.0,0.20953904]
[1728885677050,0.001644,64002.0,64001.0,0.22076311]
[1728885677264,0.001644,64002.0,64001.0,0.21474766]
[1728885677474,0.001644,64002.0,64001.0,0.22174766]
[1728885677923,0.001644,64002.0,64001.0,0.23574766]
[1728885678340,0.001644,64002.0,64001.0,0.22174766]
[1728885678548,0.00081468,64002.0,64001.0,0.22874766]
[1728885678761,0.00056692,64002.0,64001.0,0.22874766]
[1728885680069,0.00156692,64002.0,64001.0,0.24274766]
[1728885680982,0.00156692,64002.0,64001.0,0.22692407]
[1728885681208,0.00156692,64002.0,64001.0,0.24273117]
[1728885682288,0.15781192,64002.0,64001.0,0.24273117]
[1728885682505,0.15781192,64002.0,64001.0,0.05503117]
[1728885682506,0.25399762,64002.0,64001.0,0.05503117]
[1728885682716,0.25399762,64002.0,64001.0,0.0438071]
[1728885682717,0.25748182,64002.0,64001.0,0.0438071]
[1728885684896,0.25748182,64002.0,64001.0,0.02980292]
[1728885684897,0.25648182,64002.0,64001.0,0.02980292]
[1728885685115,0.25648182,64002.0,64001.0,0.01580292]
[1728885685355,0.25648182,64002.0,64001.0,0.02780292]
[1728885685801,0.25648182,64002.0,64001.0,0.01580292]
[1728885686009,0.25648182,64002.0,64001.0,0.02780292]
[1728885686868,0.25748182,64002.0,64001.0,0.03780292]
[1728885687289,0.25648182,64002.0,64001.0,0.02780292]
[1728885687719,0.25748182,64002.0,64001.0,0.03780292]
[1728885687968,0.25742182,64002.0,64001.0,0.03780292]
[1728885688620,0.25742182,64002.0,64001.0,0.03862492]
[1728885688845,0.15923612,64002.0,64001.0,0.03862492]
[1728885689282,0.15923612,64002.0,64001.0,0.04875808]
[1728885690191,0.15917612,64002.0,64001.0,0.04875808]
[1728885690649,0.16117612,64002.0,64001.0,0.04875808]
[1728885691297,0.16111612,64002.0,64001.0,0.04875808]
[1728885691977,0.16111612,64002.0,64001.0,0.03862492]
[1728885692193,0.16111612,64002.0,64001.0,0.03863942]
[1728885693312,0.16111612,64002.0,64001.0,0.05032673]
[1728885693521,0.16111612,64002.0,64001.0,0.06047254]
[1728885694373,0.16111612,64002.0,64001.0,0.05032673]
[1728885696364,0.16111612,64002.0,64001.0,0.04426352]
[1728885696566,0.16111612,64002.0,64001.0,0.05035283]
[1728885697008,0.15911612,64002.0,64001.0,0.05035283]
[1728885697219,0.16111612,64002.0,64001.0,0.05035283]
[1728885698363,0.16111612,64002.0,64001.0,0.06595539]
[1728885698597,0.16111612,64002.0,64001.0,0.05035283]
[1728885699103,0.15911612,64002.0,64001.0,0.05035283]
[1728885699516,0.15911612,64002.0,64001.0,0.06595539]
[1728885700516,0.15911612,64002.0,64001.0,0.05037037]
[1728885702200,0.15776999,64002.0,64001.0,0.05037037]
[1728885702400,0.15763192,64002.0,64001.0,0.05037037]
[1728885702731,0.12241743,64002.0,64001.0,0.05037037]
[1728885703169,0.001,64002.0,64001.0,0.05037037]
[1728885704011,0.001,64002.0,64001.0,0.05040325]
[1728885704695,0.157245,64002.0,64001.0,0.05040325]
[1728885704898,0.001,64002.0,64001.0,0.05040325]
[1728885706387,0.157245,64002.0,64001.0,0.05040325]
[1728885706627,0.001,64002.0,64001.0,0.05040325]
[1728885707075,0.157245,64002.0,64001.0,0.05040325]
[1728885707305,0.157245,64002.0,64001.0,0.09923464]
[1728885707306,0.001,64002.0,64001.0,0.09923464]
[1728885707524,0.0014842,64006.0,64001.0,0.08923464]
[1728885707729,0.156245,64002.0,64001.0,0.012822]
[1728885707933,0.157245,64002.0,64001.0,0.07951799]
[1728885708139,0.157245,64002.0,64001.0,0.09351799]
[1728885708373,0.157245,64002.0,64001.0,0.07951799]
[1728885708813,0.157245,64002.0,64001.0,0.09051799]
[1728885709036,0.157245,64002.0,64001.0,0.07951799]
[1728885709239,0.157245,64002.0,64001.0,0.06551799]
[1728885709240,0.156245,64002.0,64001.0,0.06551799]
[1728885709475,0.156245,64002.0,64001.0,0.0396866]
[1728885710100,0.156245,64002.0,64001.0,0.0306866]